bitfinex-derivatives/quotes_BTCF0:USTF0_20241023
["timestamp","ask_amount","ask_price","bid_price","bid_amount"]
[1729643941059,0.3608,67310.0,67305.0,0.05939897]
[1729643941369,0.3608,67310.0,67308.0,0.05939897]
[1729643941370,0.059454,67309.0,67308.0,0.05939897]
[1729643941564,0.059454,67309.0,67308.0,0.16939897]
[1729643941770,0.059454,67309.0,67308.0,0.15447141]
[1729643942267,0.3608,67310.0,67307.0,0.059455]
[1729643942460,0.3608,67310.0,67309.0,0.11]
[1729643944264,0.3608,67310.0,67309.0,0.17]
[1729643946075,0.3608,67310.0,67309.0,0.229454]
[1729643947074,0.3608,67310.0,67299.0,0.0744]
[1729643947075,0.44850561,67310.0,67295.0,0.0393]
[1729643947365,0.059469,67292.0,67291.0,0.00222874]
[1729643947569,0.059478,67282.0,67281.0,0.3608]
[1729643947773,0.059482,67278.0,67275.0,0.17]
[1729643947959,0.059484,67275.0,67272.0,0.17]
[1729643948163,0.0002,67273.0,67272.0,0.17]
[1729643948363,0.13958476,67273.0,67272.0,0.17]
[1729643949069,0.13264675,67273.0,67272.0,0.17]
[1729643949469,0.26649646,67273.0,67272.0,0.17]
[1729643949669,0.13425862,67273.0,67272.0,0.17]
[1729643950870,0.26670537,67273.0,67272.0,0.17]
[1729643951473,0.13425862,67273.0,67272.0,0.17]
[1729643951664,0.26670537,67273.0,67272.0,0.17]
[1729643953272,0.13425862,67273.0,67272.0,0.17]
[1729643953473,0.03862788,67273.0,67272.0,0.17]
[1729643955073,0.0002,67273.0,67272.0,0.17]
[1729643958578,0.0002,67273.0,67272.0,0.229486]
[1729643960567,0.0002,67273.0,67272.0,0.17]
[1729643966292,0.059488,67270.0,67269.0,0.00222957]
[1729643966487,0.059488,67270.0,67259.0,0.02649894]
[1729643966488,0.059495,67262.0,67259.0,0.02649894]
[1729643966678,0.0754,67261.0,67256.0,0.17]
[1729643966878,0.0002,67257.0,67256.0,0.17]
[1729643967583,0.0002,67257.0,67256.0,0.229501]
[1729643970187,0.0002,67257.0,67256.0,0.27386544]
[1729643970382,0.0002,67257.0,67256.0,0.27386198]
[1729643971677,0.0002,67257.0,67256.0,0.229501]
[1729643972289,0.0002,67257.0,67256.0,0.28889997]
[1729643972486,0.0002,67257.0,67256.0,0.229501]
[1729643975482,0.0002,67257.0,67256.0,0.32502152]
[1729643977194,0.0002,67257.0,67256.0,0.229501]
[1729643977396,0.0002,67257.0,67256.0,0.41368381]
[1729643978296,0.0002,67257.0,67256.0,0.229501]
[1729643981287,0.0002,67260.0,67259.0,0.059498]
[1729643982695,0.0002,67260.0,67259.0,0.229498]
[1729643983096,0.0002,67260.0,67259.0,0.590298]
[1729643983299,0.0785,67270.0,67265.0,0.059492]
[1729643983601,0.0785,67270.0,67268.0,0.17]
[1729643984091,0.0785,67270.0,67265.0,0.059492]
[1729643984092,0.0785,67270.0,67267.0,0.07420635]
[1729643984293,0.0002,67268.0,67266.0,0.07420635]
[1729643984594,0.0002,67267.0,67266.0,0.07420635]
[1729643985990,0.0002,67267.0,67265.0,0.60588635]
[1729643986290,0.0002,67266.0,67265.0,0.60500635]
[1729643986490,0.0002,67266.0,67265.0,0.62619651]
[1729643987497,0.0002,67266.0,67265.0,0.68569654]
[1729643992499,0.0002,67266.0,67265.0,0.68573563]
[1729643993499,0.0002,67266.0,67265.0,0.77478325]
[1729643993701,0.0002,67266.0,67265.0,0.590293]
[1729643995810,0.0002,67266.0,67265.0,0.68579643]
[1729643998608,0.0002,67266.0,67265.0,0.09550343]
[1729643998812,0.059692,67266.0,67265.0,0.09550343]
[1729644000413,0.20759732,67266.0,67261.0,0.12206021]
[1729644000611,0.13337335,67262.0,67261.0,0.12206021]
[1729644000811,0.26688425,67262.0,67261.0,0.12206021]
[1729644001507,0.13151137,67262.0,67261.0,0.12206021]
[1729644002216,0.08166959,67262.0,67261.0,0.14937841]
[1729644002723,0.08166959,67262.0,67261.0,0.0273182]
[1729644002910,0.059503,67254.0,67248.0,0.17]
[1729644003211,0.0002,67251.0,67250.0,0.3881825]
[1729644003621,0.03789913,67251.0,67250.0,0.3881825]
[1729644006013,0.03727546,67251.0,67250.0,0.3881825]
[1729644006916,0.03727546,67251.0,67250.0,0.0273825]
[1729644007109,0.03727546,67251.0,67248.0,0.17]
[1729644007309,0.0002,67249.0,67248.0,0.17]
[1729644007507,0.0002,67249.0,67248.0,0.26688614]
[1729644008818,0.0002,67249.0,67248.0,0.29346213]
[1729644009012,0.0002,67249.0,67248.0,0.35297013]
[1729644010715,0.059707,67249.0,67248.0,0.09688614]
[1729644010915,0.059707,67249.0,67247.0,0.07421924]
[1729644011116,0.059708,67248.0,67246.0,0.07421924]
[1729644011420,0.0002,67247.0,67245.0,0.07644947]
[1729644011618,0.0002,67246.0,67245.0,0.07644947]
[1729644012006,0.0002,67246.0,67245.0,0.10264741]
[1729644012417,0.0002,67246.0,67245.0,0.02842817]
[1729644012615,0.0002,67246.0,67245.0,0.00223023]
[1729644014720,0.44632,67246.0,67245.0,0.05934128]
[1729644014920,0.505829,67246.0,67245.0,0.04450813]
[1729644015122,0.05951,67245.0,67244.0,0.04450813]
[1729644015318,0.05951,67245.0,67243.0,0.04450813]
[1729644015319,0.059511,67244.0,67243.0,0.04450813]
[1729644015525,0.059511,67244.0,67236.0,0.36156]
[1729644015526,0.059512,67243.0,67242.0,0.04450813]
[1729644015729,0.059712,67243.0,67242.0,0.04450813]
[1729644016129,0.229712,67243.0,67242.0,0.04450813]
[1729644016324,0.229712,67243.0,67241.0,0.04450813]
[1729644016628,0.229712,67243.0,67242.0,0.04450813]
[1729644017324,0.229712,67243.0,67241.0,0.04450813]
[1729644017532,0.059514,67241.0,67240.0,0.04450813]
[1729644017827,0.059714,67241.0,67237.0,0.05934128]
[1729644018028,0.0002,67238.0,67237.0,0.05934128]
[1729644018232,0.0002,67238.0,67237.0,0.229517]
[1729644018730,0.0002,67238.0,67237.0,0.30373624]
[1729644019028,0.0002,67238.0,67237.0,0.40014626]
[1729644019325,0.0002,67238.0,67237.0,0.32592702]
[1729644019825,0.0002,67238.0,67237.0,0.32598753]
[1729644022227,0.0002,67241.0,67240.0,0.059515]
[1729644022421,0.0002,67241.0,67240.0,0.2301061]
[1729644023828,0.0002,67241.0,67240.0,0.15598553]
[1729644025828,0.0002,67241.0,67240.0,0.23013651]
[1729644026132,0.0002,67241.0,67240.0,0.15598553]
[1729644029524,0.0002,67241.0,67240.0,0.24518511]
[1729644031337,0.0002,67241.0,67240.0,0.27111402]
[1729644033825,0.0002,67244.0,67240.0,0.65775902]
[1729644034027,0.0387,67264.0,67246.0,0.059509]
[1729644034336,0.0002,67262.0,67261.0,0.059496]
[1729644034526,0.0002,67262.0,67261.0,0.32566391]
[1729644034832,0.0002,67262.0,67261.0,0.41479208]
[1729644035034,0.0002,67262.0,67261.0,0.32566391]
[1729644036437,0.0002,67262.0,67261.0,0.41470867]
[1729644037137,0.0002,67262.0,67261.0,0.44211515]
[1729644037321,0.0002,67262.0,67261.0,0.35307039]
[1729644037523,0.0002,67262.0,67261.0,0.19740648]
[1729644037932,0.0002,67262.0,67261.0,0.02740648]
[1729644038139,0.0002,67262.0,67259.0,0.05934121]
[1729644038433,0.0002,67260.0,67258.0,0.65039921]
[1729644038633,0.0002,67259.0,67258.0,0.64963921]
[1729644038825,0.0002,67259.0,67258.0,0.590298]
[1729644040230,0.0002,67259.0,67258.0,0.61699401]
[1729644042334,0.0002,67259.0,67258.0,0.66145622]
[1729644045240,0.0002,67259.0,67258.0,0.61699401]
[1729644045540,0.0002,67259.0,67258.0,0.590298]
[1729644046331,0.0002,67259.0,67258.0,0.229498]
[1729644055439,0.0002,67259.0,67258.0,0.27398345]
[1729644057452,0.0002,67259.0,67258.0,0.229498]
[1729644058353,0.0002,67259.0,67258.0,0.169498]
[1729644060048,0.0002,67259.0,67258.0,0.26568094]
[1729644060944,0.059499,67258.0,67255.0,0.02737737]
[1729644061142,0.0002,67259.0,67256.0,0.07424141]
[1729644061143,0.059698,67259.0,67256.0,0.07424141]
[1729644061444,0.059698,67259.0,67257.0,0.18424141]
[1729644061640,0.0002,67259.0,67257.0,0.24374041]
[1729644061845,0.0002,67259.0,67258.0,0.0962867]
[1729644062040,0.0002,67259.0,67258.0,0.1557857]
[1729644062253,0.0002,67259.0,67258.0,0.3257857]
[1729644063444,0.0002,67259.0,67258.0,0.44106204]
[1729644065358,0.0002,67259.0,67258.0,0.44155411]
[1729644068144,0.0002,67259.0,67258.0,0.40060883]
[1729644071371,0.0002,67259.0,67258.0,0.32624116]
[1729644071761,0.0002,67259.0,67258.0,0.40062886]
[1729644072455,0.0002,67259.0,67258.0,0.32624116]
[1729644073061,0.0002,67259.0,67258.0,0.4006363]
[1729644073255,0.0002,67259.0,67258.0,0.32624116]
[1729644073458,0.0002,67259.0,67258.0,0.26674216]
[1729644073760,0.0002,67259.0,67258.0,0.34113853]
[1729644074567,0.0002,67259.0,67258.0,0.17]
[1729644075269,0.0002,67259.0,67258.0,0.38175578]
[1729644078562,0.0002,67259.0,67258.0,0.21175578]
[1729644078768,0.059698,67259.0,67258.0,0.0966056]
[1729644078969,0.135398,67259.0,67258.0,0.0966056]
[1729644079166,0.135398,67259.0,67258.0,0.18588281]
[1729644079367,0.0759,67259.0,67257.0,0.08927721]
[1729644079566,0.344298,67259.0,67258.0,0.09656466]
[1729644080370,0.174298,67259.0,67258.0,0.09656466]
[1729644082672,0.174298,67259.0,67258.0,0.26656466]
[1729644083789,0.135398,67259.0,67258.0,0.26656466]
[1729644084362,0.135398,67259.0,67258.0,0.20656466]
[1729644087274,0.0002,67259.0,67258.0,0.37606366]
[1729644087479,0.0002,67259.0,67258.0,0.26606366]
[1729644087674,0.0002,67259.0,67258.0,0.35534087]
[1729644087875,0.0002,67259.0,67258.0,0.38191806]
[1729644088981,0.0002,67259.0,67258.0,0.38181]
[1729644089177,0.0002,67259.0,67258.0,0.29253279]
[1729644090375,0.0002,67259.0,67258.0,0.19607619]
[1729644098186,0.0002,67259.0,67258.0,0.29297076]
[1729644098391,0.0002,67259.0,67258.0,0.29297365]
[1729644099986,0.0002,67259.0,67258.0,0.09689746]
[1729644100193,0.420498,67259.0,67258.0,0.09689746]
[1729644100585,0.460198,67259.0,67258.0,0.17126759]
[1729644100779,0.498098,67259.0,67258.0,0.17126759]
[1729644101587,0.498098,67259.0,67258.0,0.09689746]
[1729644101790,0.498098,67259.0,67258.0,0.20689746]
[1729644101791,0.137298,67259.0,67258.0,0.20689746]
[1729644102591,0.16409761,67259.0,67258.0,0.20689746]
[1729644102988,0.16409761,67259.0,67258.0,0.20690206]
[1729644105290,0.059501,67256.0,67255.0,0.05949572]
[1729644105588,0.059499,67258.0,67253.0,0.05949572]
[1729644105891,0.0595,67257.0,67256.0,0.0446239]
[1729644110297,0.059501,67256.0,67255.0,0.0446239]
[1729644110493,0.059701,67256.0,67255.0,0.0446239]
[1729644111089,0.059701,67256.0,67254.0,0.0446239]
[1729644111290,0.0002,67255.0,67254.0,0.0446239]
[1729644112790,0.0002,67255.0,67253.0,0.11]
[1729644112993,0.0002,67254.0,67253.0,0.11]
[1729644117594,0.0002,67254.0,67253.0,0.20709297]
[1729644122496,0.059702,67254.0,67253.0,0.09709297]
[1729644122698,0.169702,67254.0,67253.0,0.17142295]
[1729644122902,0.169702,67254.0,67252.0,0.07432998]
[1729644123207,0.059504,67252.0,67250.0,0.07432998]
[1729644123408,0.059505,67251.0,67250.0,0.07432998]
[1729644123709,0.059705,67251.0,67250.0,0.17154847]
[1729644126202,0.059705,67251.0,67250.0,0.09721849]
[1729644130112,0.08628864,67251.0,67250.0,0.09721849]
[1729644130810,0.08628864,67251.0,67250.0,0.09724387]
[1729644143025,0.08628864,67251.0,67250.0,0.1864868]
[1729644146129,0.08628864,67251.0,67250.0,0.09724387]
[1729644148719,0.059705,67251.0,67250.0,0.09724387]
[1729644154827,0.059519,67235.0,67231.0,0.10409167]
[1729644155025,0.059519,67235.0,67228.0,0.10409167]
[1729644155026,0.471,67232.0,67228.0,0.10409167]
[1729644155227,0.059525,67228.0,67227.0,0.07433522]
[1729644155436,0.059528,67225.0,67224.0,0.07433522]
[1729644155637,0.059529,67224.0,67223.0,0.0403]
[1729644155829,1.559729,67224.0,67223.0,0.0403]
[1729644156225,1.669729,67224.0,67223.0,0.0403]
[1729644156536,1.559729,67224.0,67223.0,0.0403]
[1729644156732,1.662169,67224.0,67223.0,0.0403]
[1729644157230,1.662169,67224.0,67223.0,0.08482645]
[1729644157536,1.68891054,67224.0,67223.0,0.08482645]
[1729644158224,1.68891054,67224.0,67223.0,0.0403]
[1729644158634,2.04971054,67224.0,67223.0,0.0403]
[1729644163628,0.059538,67214.0,67212.0,0.04452645]
[1729644163828,0.1102,67213.0,67212.0,0.04452645]
[1729644164039,0.169739,67213.0,67212.0,0.04452645]
[1729644164337,0.169739,67213.0,67211.0,0.40532645]
[1729644164636,0.0002,67212.0,67211.0,0.40532645]
[1729644165340,0.0002,67212.0,67211.0,0.3608]
[1729644165644,0.059739,67212.0,67209.0,0.08552645]
[1729644165838,0.059739,67212.0,67211.0,0.0395]
[1729644169438,0.0002,67212.0,67211.0,0.20904]
[1729644170136,0.0002,67212.0,67211.0,0.1495]
[1729644171633,0.0002,67212.0,67211.0,0.0395]
[1729644171831,0.1102,67212.0,67211.0,0.0395]
[1729644179339,0.1102,67212.0,67211.0,0.08402645]
[1729644179938,0.0002,67212.0,67211.0,0.20904]
[1729644181248,0.279739,67212.0,67211.0,0.0395]
[1729644181426,0.279739,67212.0,67207.0,0.0405]
[1729644181427,0.279739,67212.0,67208.0,0.04447873]
[1729644181736,0.059545,67206.0,67205.0,0.04447873]
[1729644181943,1.669745,67206.0,67203.0,0.04447873]
[1729644182126,1.669745,67206.0,67200.0,0.11896447]
[1729644182127,0.1102,67204.0,67200.0,0.11896447]
[1729644182333,0.169547,67203.0,67202.0,0.05941447]
[1729644182536,0.169547,67203.0,67200.0,0.02736978]
[1729644182537,0.169547,67203.0,67201.0,0.05941447]
[1729644182740,0.0002,67202.0,67201.0,0.05941447]
[1729644183047,0.0002,67202.0,67200.0,0.05941447]
[1729644183235,0.0002,67201.0,67199.0,0.0401]
[1729644183434,0.0002,67201.0,67200.0,0.05955]
[1729644183737,0.0002,67201.0,67200.0,0.15475832]
[1729644184237,0.0002,67201.0,67200.0,0.2682746]
[1729644184440,0.0002,67201.0,67200.0,0.15475832]
[1729644186346,0.0002,67201.0,67200.0,0.2682234]
[1729644186941,0.0002,67201.0,67200.0,0.15475832]
[1729644187939,0.0002,67201.0,67200.0,0.24394084]
[1729644189449,0.0002,67201.0,67200.0,0.15475832]
[1729644191555,0.0002,67202.0,67200.0,0.65164832]
[1729644191853,0.10236,67219.0,67203.0,0.11]
[1729644192052,0.059536,67216.0,67211.0,0.11]
[1729644192243,0.059536,67216.0,67211.0,0.09520832]
[1729644193639,0.059536,67216.0,67211.0,0.24394258]
[1729644193948,0.059538,67214.0,67211.0,0.22460258]
[1729644194147,0.17,67216.0,67211.0,0.22460258]
[1729644194349,0.17,67216.0,67211.0,0.13540832]
[1729644194544,0.059537,67215.0,67211.0,0.13540832]
[1729644195246,0.17,67216.0,67211.0,0.13540832]
[1729644195450,0.059739,67213.0,67211.0,0.1352701]
[1729644195749,0.059739,67212.0,67211.0,0.0950701]
[1729644199750,0.0002,67212.0,67211.0,0.0950701]
[1729644200159,0.0002,67212.0,67211.0,0.09505284]
[1729644203456,0.059739,67212.0,67211.0,0.09505284]
[1729644204861,0.059739,67212.0,67211.0,0.09506354]
[1729644207566,1.559739,67212.0,67211.0,0.09506354]
[1729644208165,1.5002,67212.0,67211.0,0.09506354]
[1729644209566,1.5002,67212.0,67211.0,0.09503796]
[1729644210067,1.559739,67212.0,67211.0,0.09503796]
[1729644215860,1.669739,67212.0,67211.0,0.16944346]
[1729644216064,1.669739,67212.0,67211.0,0.0744055]
[1729644216276,1.559739,67212.0,67211.0,0.0744055]
[1729644216466,1.58606736,67212.0,67211.0,0.0744055]
[1729644216873,1.52652836,67212.0,67210.0,0.0744055]
[1729644217070,0.20754,67211.0,67210.0,0.0744055]
[1729644217270,0.20754,67211.0,67210.0,0.16962181]
[1729644217470,0.20754,67211.0,67210.0,0.09521631]
[1729644217672,1.70754,67211.0,67210.0,0.09521631]
[1729644218971,1.758,67211.0,67209.0,0.07442226]
[1729644219174,0.059741,67210.0,67208.0,0.07442485]
[1729644219365,0.1102,67209.0,67202.0,0.17534414]
[1729644219675,0.059742,67209.0,67208.0,0.07442697]
[1729644220267,1.559742,67209.0,67208.0,0.16991464]
[1729644220467,1.559742,67209.0,67208.0,0.16991373]
[1729644220769,1.669742,67209.0,67208.0,0.16991373]
[1729644221276,1.559742,67209.0,67208.0,0.16991373]
[1729644221476,1.559742,67209.0,67208.0,0.07442606]
[1729644224577,0.059543,67208.0,67207.0,0.07442606]
[1729644224769,0.169743,67208.0,67207.0,0.09543748]
[1729644228777,0.169743,67208.0,67207.0,0.09542137]
[1729644233176,0.169743,67208.0,67203.0,0.19919426]
[1729644233381,0.0002,67204.0,67203.0,0.19919426]
[1729644233687,0.0002,67204.0,67203.0,0.11]
[1729644234077,0.0002,67204.0,67203.0,0.20536115]
[1729644235590,0.0002,67204.0,67203.0,0.11]
[1729644236987,0.0002,67204.0,67202.0,0.059548]
[1729644237282,0.0002,67203.0,67202.0,0.059548]
[1729644240490,0.0002,67203.0,67202.0,0.26867101]
[1729644243478,0.0002,67208.0,67202.0,0.42912301]
[1729644243686,0.059533,67219.0,67212.0,0.059539]
[1729644243986,1.559534,67218.0,67214.0,0.3608]
[1729644244383,0.11,67216.0,67214.0,0.3608]
[1729644244583,0.169536,67216.0,67214.0,0.3608]
[1729644245490,0.169536,67216.0,67215.0,0.0954045]
[1729644246392,0.169536,67216.0,67215.0,0.16981131]
[1729644246598,0.169536,67216.0,67215.0,0.0954045]
[1729644246782,0.169536,67216.0,67215.0,0.1348045]
[1729644247389,0.169536,67216.0,67215.0,0.11379641]
[1729644248194,0.169536,67216.0,67215.0,0.20895195]
[1729644248694,0.169536,67216.0,67215.0,0.11379641]
[1729644249088,0.169536,67216.0,67215.0,0.0394]
[1729644259208,0.060495,67218.0,67215.0,0.19390074]
[1729644259508,0.059535,67218.0,67217.0,0.11]
[1729644259708,0.059535,67218.0,67216.0,0.16931356]
[1729644259709,0.059535,67217.0,67216.0,0.07437587]
[1729644259908,0.059535,67217.0,67216.0,0.16931249]
[1729644260101,0.059735,67217.0,67216.0,0.16931249]
[1729644261209,0.059735,67217.0,67215.0,0.17331187]
[1729644261399,0.059735,67217.0,67216.0,0.27939978]
[1729644262911,0.059735,67217.0,67216.0,0.20502391]
[1729644263403,0.059735,67217.0,67216.0,0.27946735]
[1729644263811,0.059735,67217.0,67216.0,0.20507503]
[1729644265509,0.059735,67217.0,67216.0,0.2313339]
[1729644265804,0.059735,67217.0,67216.0,0.6516699]
[1729644266004,0.059722,67232.0,67216.0,0.6516699]
[1729644266005,0.0002,67232.0,67216.0,0.79139521]
[1729644266212,0.0002,67232.0,67231.0,0.169523]
[1729644267211,0.059524,67230.0,67229.0,0.1134]
[1729644267416,0.059724,67230.0,67229.0,0.1134]
[1729644268901,0.1102,67230.0,67228.0,0.0008]
[1729644269111,0.059528,67225.0,67224.0,0.05942908]
[1729644269302,0.169728,67225.0,67224.0,0.05942908]
[1729644269504,0.169728,67225.0,67220.0,0.3608]
[1729644269505,0.059529,67224.0,67223.0,0.05942908]
[1729644269705,0.059729,67224.0,67223.0,0.05942908]
[1729644269906,0.0002,67224.0,67220.0,0.3608]
[1729644270106,0.059731,67221.0,67220.0,0.3608]
[1729644276521,0.169731,67221.0,67220.0,0.3608]
[1729644279324,0.059731,67221.0,67220.0,0.3608]
[1729644286827,0.169731,67221.0,67220.0,0.3608]
[1729644287125,0.91728,67221.0,67213.0,0.07432664]
[1729644287426,0.059539,67213.0,67212.0,0.07432664]
[1729644287624,0.059539,67213.0,67211.0,0.07432664]
[1729644287625,0.169739,67213.0,67211.0,0.07432664]
[1729644287929,0.0002,67212.0,67211.0,0.07432664]
[1729644288127,0.0002,67212.0,67205.0,0.0386]
[1729644288128,0.0002,67212.0,67208.0,0.13386964]
[1729644288328,0.0002,67212.0,67209.0,0.16939836]
[1729644288523,0.0002,67212.0,67211.0,0.11]
[1729644288830,0.0002,67212.0,67211.0,0.20494485]
[1729644289326,0.0002,67212.0,67211.0,0.09494485]
[1729644289625,0.0002,67212.0,67211.0,0.26448485]
[1729644290215,0.0002,67212.0,67211.0,0.15448485]
[1729644295730,0.0002,67214.0,67211.0,0.15448485]
[1729644295731,0.0002,67214.0,67211.0,0.63056616]
[1729644296037,0.0002,67229.0,67220.0,0.22]
[1729644296239,0.0002,67229.0,67224.0,0.590329]
[1729644296548,0.0002,67229.0,67224.0,0.6847959]
[1729644297834,0.0002,67229.0,67224.0,0.684375]
[1729644299128,0.0002,67229.0,67224.0,0.77356512]
[1729644300338,0.0002,67229.0,67224.0,0.684375]
[1729644300638,0.0002,67229.0,67224.0,0.7112909]
[1729644301927,0.0002,67229.0,67224.0,0.5412909]
[1729644302237,0.17,67228.0,67224.0,0.454846]
[1729644303231,0.229525,67228.0,67224.0,0.454846]
[1729644304635,0.17,67228.0,67224.0,0.454846]
[1729644304839,0.059527,67227.0,67224.0,0.454846]
[1729644305031,0.17,67228.0,67224.0,0.454846]
[1729644305929,0.229526,67228.0,67224.0,0.454846]
[1729644306527,0.420327,67226.0,67224.0,0.16831662]
[1729644306737,0.44805997,67226.0,67222.0,0.07427062]
[1729644306934,0.17,67224.0,67221.0,0.11147062]
[1729644307233,0.0002,67222.0,67221.0,0.0372]
[1729644307532,0.059731,67222.0,67221.0,0.0372]
[1729644307929,0.059532,67221.0,67216.0,0.07427062]
[1729644308233,0.0002,67217.0,67215.0,0.07427062]
[1729644308430,0.0002,67216.0,67215.0,0.07427062]
[1729644308631,0.0002,67216.0,67215.0,0.09448288]
[1729644308945,0.0002,67216.0,67215.0,0.16876345]
[1729644310533,0.0002,67216.0,67215.0,0.16880928]
[1729644310729,0.0002,67216.0,67215.0,0.07428057]
[1729644311936,0.0002,67216.0,67214.0,0.16050468]
[1729644312131,0.0002,67215.0,67214.0,0.16050468]
[1729644312334,0.0002,67215.0,67214.0,0.18078815]
[1729644314938,0.0002,67215.0,67214.0,0.25506665]
[1729644315534,0.0002,67215.0,67214.0,0.18078815]
[1729644316336,0.0002,67215.0,67214.0,0.29078815]
[1729644318237,0.0002,67215.0,67214.0,0.29062417]
[1729644321439,0.0002,67215.0,67214.0,0.18062417]
[1729644321634,0.0002,67215.0,67214.0,0.29062417]
[1729644322836,0.0002,67215.0,67214.0,0.290618]
[1729644324337,0.0002,67215.0,67214.0,0.37980812]
[1729644324745,0.0002,67215.0,67214.0,0.290618]
[1729644324937,0.0002,67215.0,67214.0,0.37981395]
[1729644325641,0.0002,67215.0,67214.0,0.290618]
[1729644326043,0.0002,67215.0,67214.0,0.37982333]
[1729644326246,0.0002,67215.0,67214.0,0.290618]
[1729644332352,0.0002,67215.0,67214.0,0.29069122]
[1729644332854,0.0002,67215.0,67214.0,0.40331187]
[1729644334050,0.0002,67215.0,67214.0,0.29069122]
[1729644337265,0.0002,67215.0,67214.0,0.29094293]
[1729644338455,0.03991143,67215.0,67214.0,0.19622411]
[1729644341957,0.03993083,67215.0,67214.0,0.19622411]
[1729644344063,0.0860897,67215.0,67214.0,0.19622411]
[1729644345453,0.0002,67215.0,67214.0,0.29090749]
[1729644345653,0.0002,67215.0,67214.0,0.40376645]
[1729644351470,0.0002,67215.0,67214.0,0.4038231]
[1729644354671,0.0002,67215.0,67214.0,0.20759899]
[1729644355283,0.0002,67215.0,67214.0,0.09470922]
[1729644355469,0.0002,67215.0,67214.0,0.18404352]
[1729644355881,0.0002,67215.0,67214.0,0.09470922]
[1729644356676,0.0002,67215.0,67214.0,0.18403239]
[1729644357877,0.0002,67215.0,67214.0,0.18412224]
[1729644358275,0.0002,67215.0,67214.0,0.09479907]
[1729644360675,0.03979225,67215.0,67213.0,0.4716]
[1729644360881,0.03959225,67214.0,67213.0,0.4708]
[1729644361087,0.03979225,67214.0,67213.0,0.4708]
[1729644363678,0.03979225,67214.0,67213.0,0.530339]
[1729644364283,0.0002,67214.0,67213.0,0.530339]
[1729644364486,0.04041892,67214.0,67213.0,0.530339]
[1729644367684,0.04041892,67214.0,67213.0,0.71395098]
[1729644367685,0.0002,67214.0,67213.0,0.71395098]
[1729644368087,0.0002,67214.0,67213.0,0.62462781]
[1729644368279,0.0002,67214.0,67213.0,0.45508881]
[1729644368591,0.0002,67214.0,67213.0,0.62462781]
[1729644370578,0.0002,67214.0,67213.0,0.73698066]
[1729644370783,0.0002,67214.0,67213.0,0.73697399]
[1729644370988,0.0002,67214.0,67213.0,0.62462781]
[1729644371583,0.0002,67214.0,67213.0,0.7369812]
[1729644375689,0.08716425,67214.0,67213.0,0.530339]
[1729644382491,0.04044172,67214.0,67213.0,0.530339]
[1729644382691,0.0002,67214.0,67213.0,0.62461826]
[1729644383390,0.0002,67214.0,67213.0,0.51461862]
[1729644383587,0.0002,67214.0,67213.0,0.73700523]
[1729644385592,0.0002,67214.0,67213.0,0.37620523]
[1729644390796,0.0002,67214.0,67213.0,0.169539]
[1729644391303,0.08726065,67214.0,67213.0,0.169539]
[1729644392495,0.140613,67214.0,67213.0,0.09506016]
[1729644392800,0.140613,67214.0,67213.0,0.26459916]
[1729644393004,0.06319069,67222.0,67214.0,0.44632]
[1729644393195,0.16278862,67230.0,67229.0,0.059524]
[1729644393500,0.059521,67233.0,67229.0,0.11]
[1729644393702,0.059523,67232.0,67226.0,0.11]
[1729644393891,0.0002,67227.0,67226.0,0.11]
[1729644394097,0.059528,67226.0,67221.0,0.3608]
[1729644394291,0.0002,67222.0,67221.0,0.3608]
[1729644394504,0.0002,67222.0,67221.0,0.4708]
[1729644395199,0.0002,67222.0,67221.0,0.49699077]
[1729644396501,0.0002,67222.0,67221.0,0.66652177]
[1729644397703,0.0002,67227.0,67222.0,0.05953]
[1729644397897,0.0002,67227.0,67226.0,0.11]
[1729644398099,0.0002,67227.0,67226.0,0.20934745]
[1729644398400,0.169726,67227.0,67226.0,0.09934745]
[1729644398900,0.169726,67227.0,67226.0,0.1736724]
[1729644399397,0.169726,67227.0,67226.0,0.07432495]
[1729644399895,0.1102,67227.0,67226.0,0.07432495]
[1729644400304,0.1102,67227.0,67226.0,0.17368916]
[1729644400498,0.1102,67227.0,67226.0,0.07432495]
[1729644403299,0.169726,67227.0,67226.0,0.07432495]
[1729644403498,0.169726,67227.0,67226.0,0.17367856]
[1729644404101,0.615966,67227.0,67226.0,0.17367856]
[1729644404308,0.615966,67227.0,67213.0,0.11]
[1729644404309,0.44624,67226.0,67219.0,0.08919824]
[1729644404494,0.059533,67219.0,67217.0,0.14873324]
[1729644404802,0.0002,67218.0,67217.0,0.059535]
[1729644405105,0.0002,67218.0,67213.0,0.059544]
[1729644405306,0.11,67214.0,67212.0,0.08918884]
[1729644405513,0.11,67214.0,67212.0,0.0263838]
[1729644405514,0.420344,67213.0,67212.0,0.0263838]
[1729644405807,0.420544,67213.0,67209.0,0.0374]
[1729644405999,0.420544,67213.0,67212.0,0.0594668]
[1729644406402,0.530544,67213.0,67212.0,0.0594668]
[1729644407105,0.059545,67212.0,67211.0,0.0594668]
[1729644407306,0.169545,67212.0,67210.0,0.0594668]
[1729644407608,0.0002,67211.0,67210.0,0.0594668]
[1729644408401,0.0002,67211.0,67209.0,0.0968668]
[1729644408608,0.0002,67210.0,67209.0,0.0968668]
[1729644408912,0.0002,67210.0,67209.0,0.0374]
[1729644409299,0.0002,67210.0,67209.0,0.0968668]
[1729644409501,0.0002,67210.0,67209.0,0.0374]
[1729644410499,0.059747,67210.0,67209.0,0.0374]
[1729644410711,0.059747,67210.0,67207.0,0.0594668]
[1729644410712,0.059548,67209.0,67207.0,0.0594668]
[1729644410914,0.44636,67209.0,67204.0,0.0594668]
[1729644411097,0.530552,67205.0,67204.0,0.0594668]
[1729644411299,0.530552,67205.0,67203.0,0.0594668]
[1729644411612,0.0002,67204.0,67202.0,0.0594668]
[1729644411909,0.0002,67203.0,67201.0,0.0594668]
[1729644412303,0.0002,67202.0,67201.0,0.0594668]
[1729644412903,0.0002,67202.0,67199.0,0.0660923]
[1729644413216,0.0002,67200.0,67199.0,0.0660923]
[1729644427711,0.059756,67200.0,67199.0,0.0660923]
[1729644428723,0.0002,67200.0,67199.0,0.0660923]